bitfinex/quotes_ETHUSD_20240816
["timestamp","ask_amount","ask_price","bid_price","bid_amount"]
[1723832590934,3.81295,2622.7,2622.2,2.4175]
[1723832591115,0.617563,2623.6,2622.2,2.4175]
[1723832591116,3.81215,2623.2,2622.2,2.4175]
[1723832591438,3.81244,2623.0,2622.4,3.81329]
[1723832591745,3.81244,2623.0,2622.3,3.81332]
[1723832591914,3.81244,2623.0,2622.3,4.86349703]
[1723832592238,7.62496,2623.0,2622.4,3.81322]
[1723832592627,3.81274,2622.8,2622.2,2.4175]
[1723832593445,3.81274,2622.8,2622.2,6.231]
[1723832593640,3.81274,2622.8,2622.3,0.08952573]
[1723832593938,3.81265,2622.9,2622.2,6.23107]
[1723832594140,3.8129,2622.7,2622.4,0.08944639]
[1723832594341,3.8129,2622.7,2622.3,0.08954145]
[1723832594545,3.8129,2622.7,2622.5,0.08934976]
[1723832594715,7.6259,2622.7,2622.4,0.08944481]
[1723832594917,7.6259,2622.7,2622.6,0.08925471]
[1723832594918,8.38848,2622.7,2622.6,0.08925471]
[1723832595242,8.38848,2622.7,2621.9,6.81398]
[1723832595243,3.81369,2622.2,2621.9,2.3637]
[1723832596150,3.81386,2622.1,2621.5,2.3711]
[1723832596351,3.81391,2622.0,2621.5,2.3711]
[1723832596532,3.81386,2622.1,2621.6,3.81443]
[1723832596731,3.81396,2622.0,2621.5,2.3711]
[1723832597106,3.81396,2622.0,2621.5,6.18566]
[1723832597312,3.8141,2621.9,2621.5,2.3711]
[1723832597550,7.62797,2622.0,2621.5,2.3711]
[1723832597769,3.81406,2621.9,2621.5,2.3711]
[1723832599533,3.81396,2622.0,2621.5,2.3711]
[1723832599734,3.81402,2621.9,2621.5,2.3711]
[1723832599935,3.81396,2622.0,2621.5,2.3711]
[1723832599936,3.81417,2621.8,2621.5,2.3711]
[1723832600567,3.81396,2622.0,2621.5,2.3711]
[1723832600767,3.81403,2621.9,2621.5,2.3711]
[1723832601894,3.81396,2622.0,2621.5,2.3711]
[1723832602183,3.81341,2622.4,2621.6,0.31339047]
[1723832602184,3.81368,2622.2,2621.6,0.31339047]
[1723832602355,7.6274,2622.2,2621.6,4.05148]
[1723832602703,3.81368,2622.2,2621.6,4.05148]
[1723832603209,3.8134,2622.4,2621.8,3.81409]
[1723832603418,3.81281,2622.8,2622.1,3.81365]
[1723832603689,3.81251,2623.0,2621.9,2.46076523]
[1723832603690,3.81253,2623.0,2621.9,7.0965]
[1723832603890,3.81253,2623.0,2622.4,2.3845]
[1723832604074,3.81265,2622.9,2622.4,2.3845]
[1723832604477,3.81253,2623.0,2622.4,2.3845]
[1723832604786,3.81221,2623.2,2622.5,3.81313]
[1723832605396,3.81221,2623.2,2622.6,3.81298]
[1723832605592,3.81221,2623.2,2622.7,0.381298]
[1723832605799,3.81193,2623.4,2622.8,6.19718]
[1723832605955,3.81193,2623.4,2622.8,2.3845]
[1723832606160,3.81216,2623.2,2622.8,2.3845]
[1723832607292,7.62442,2623.2,2622.8,2.3845]
[1723832607506,0.762442,2623.2,2622.3,2.4265]
[1723832607711,3.81259,2622.9,2622.3,2.4265]
[1723832607917,7.62525,2622.9,2622.3,6.23992]
[1723832608074,3.81291,2622.7,2622.3,2.4265]
[1723832608475,3.81291,2622.7,2622.4,0.08957216]
[1723832610113,3.81297,2622.7,2622.4,0.08957216]
[1723832610286,3.81315,2622.5,2622.4,0.08957216]
[1723832611097,8.388911,2622.5,2622.4,0.08957216]
[1723832611276,2.4721,2623.0,2621.9,2.2923]
[1723832611477,3.81368,2622.2,2621.6,2.2661]
[1723832611778,3.81368,2622.2,2621.6,6.08048]
[1723832613912,3.81317,2622.5,2621.6,2.2661]
[1723832614114,3.81308,2622.6,2621.3,0.45731028]
[1723832614115,3.81308,2622.6,2622.0,2.3337]
[1723832614293,3.81308,2622.6,2622.1,0.23337]
[1723832614612,3.81308,2622.6,2622.0,2.3337]
[1723832614783,3.81287,2622.7,2622.1,3.81363]
[1723832615657,3.81279,2622.8,2622.1,3.81363]
[1723832615944,3.81294,2622.7,2622.1,3.81363]
[1723832616143,3.81294,2622.7,2622.1,8.623415]
[1723832616316,3.81312,2622.6,2622.1,0.996125]
[1723832616745,3.81331,2622.4,2622.0,2.3337]
[1723832617045,3.0,2623.2,2622.1,3.81364]
[1723832617046,7.62565,2622.8,2622.1,3.81364]
[1723832617222,3.81287,2622.7,2622.2,0.996119]
[1723832617418,3.81302,2622.6,2622.0,6.14748]
[1723832617741,7.62611,2622.6,2622.0,6.14756]
[1723832617906,7.62611,2622.6,2621.7,2.2941]
[1723832617907,3.81367,2622.2,2621.7,2.2941]
[1723832618662,3.81376,2622.1,2621.7,2.2941]
[1723832618976,7.6276,2622.1,2621.7,2.2941]
[1723832619643,3.81376,2622.1,2621.7,2.2941]
[1723832620445,3.81361,2622.2,2621.7,2.2941]
[1723832621041,3.81354,2622.3,2621.7,2.2941]
[1723832621248,3.81354,2622.3,2621.7,2.904946]
[1723832621429,3.81353,2622.3,2621.7,2.904946]
[1723832621626,3.81353,2622.3,2621.7,2.2941]
[1723832623124,2.46,2622.8,2621.7,2.2941]
[1723832623125,3.8134,2622.4,2621.7,2.2941]
[1723832623346,3.81294,2622.7,2622.0,3.8138]
[1723832623544,3.81294,2622.7,2622.1,2.3785]
[1723832623545,0.381294,2622.6,2622.1,2.3785]
[1723832623745,3.81294,2622.7,2622.1,6.28221041]
[1723832623946,7.6259,2622.7,2622.1,2.46850041]
[1723832624351,7.6259,2622.7,2622.1,3.09672845]
[1723832624546,3.81305,2622.6,2622.1,3.09672845]
[1723832625760,3.81316,2622.5,2622.1,3.09672845]
[1723832625977,3.81338,2622.4,2622.1,2.46850041]
[1723832626261,3.81359,2622.2,2622.1,0.09000041]
[1723832627139,3.81376,2622.1,2621.8,2.3866]
[1723832632620,7.62712,2622.3,2621.8,2.3866]
[1723832633080,3.81337,2622.4,2621.8,3.006703]
[1723832633279,3.81326,2622.5,2621.8,2.3866]
[1723832633571,3.81346,2622.3,2621.8,2.3866]
[1723832633730,3.81346,2622.3,2621.4,4.712]
[1723832633731,2.4051,2622.6,2621.4,2.355]
[1723832633939,3.81432,2621.7,2621.4,2.75177589]
[1723832634231,3.81412,2621.9,2621.4,2.355]
[1723832634461,7.62825,2621.9,2621.5,0.2355]
[1723832634656,7.62825,2621.9,2621.4,2.355]
[1723832634981,3.81411,2621.9,2621.4,2.355]
[1723832635849,3.81425,2621.8,2621.4,2.355]
[1723832636065,3.81382,2622.1,2621.4,2.355]
[1723832636281,3.81382,2622.1,2621.5,0.2355]
[1723832636604,3.81396,2622.0,2621.5,0.2355]
[1723832637120,3.81411,2621.9,2621.5,0.2355]
[1723832637355,3.81411,2621.9,2621.4,2.355]
[1723832638462,3.81438,2621.7,2621.4,2.355]
[1723832638621,3.81438,2621.7,2621.5,0.09065124]
[1723832639070,7.62825,2621.9,2621.5,0.09065124]
[1723832639281,3.81428,2621.8,2621.5,0.09065124]
[1723832640648,3.81432,2621.7,2621.5,0.09065124]
[1723832641971,5.4051,2622.6,2621.5,0.33521636]
[1723832642198,3.81301,2622.6,2621.8,3.81413]
[1723832642388,3.81301,2622.6,2621.9,2.95637525]
[1723832642526,3.81301,2622.6,2622.1,2.4987]
[1723832642973,3.81301,2622.6,2622.2,0.08999026]
[1723832643157,3.81277,2622.8,2622.2,0.08999026]
[1723832643358,3.81277,2622.8,2622.2,3.90356026]
[1723832643664,3.81277,2622.8,2622.3,0.64022603]
[1723832643877,3.81217,2623.2,2622.3,0.64022603]
[1723832644172,3.81286,2622.7,2622.3,0.08989519]
[1723832644530,7.6258,2622.7,2622.1,2.4987]
[1723832644731,7.6258,2622.7,2622.4,0.08980013]
[1723832644977,3.81262,2622.9,2622.1,2.4987]
[1723832645176,3.81321,2622.5,2622.1,2.74857]
[1723832645518,3.8131,2622.6,2622.1,2.74857]
[1723832645726,11.15471,2623.5,2622.1,2.74857]
[1723832645727,2.4079,2623.9,2622.4,4.712]
[1723832645938,3.81178,2623.5,2622.9,2.3827]
[1723832646268,3.80999,2624.7,2623.5,2.3827]
[1723832646443,7.61978,2624.8,2623.9,3.81102]
[1723832646582,0.771978,2624.8,2624.1,2.3827]
[1723832647134,4.581788,2624.8,2624.1,2.3827]
[1723832647278,0.771978,2624.8,2624.1,6.19342]
[1723832647483,3.80977,2624.9,2624.2,0.07619912]
[1723832647780,3.80977,2624.9,2624.1,7.087818]
[1723832647781,0.1,2625.0,2624.4,2.3827]
[1723832647983,0.1,2625.0,2624.6,3.81001]
[1723832648239,0.1,2625.0,2624.7,3.80995]
[1723832648520,0.1,2625.0,2624.6,3.81001]
[1723832648832,0.1,2625.0,2624.4,2.3827]
[1723832649008,0.1,2625.0,2624.5,0.894398]
[1723832649335,0.1,2625.0,2624.4,2.3827]
[1723832650601,3.80975,2624.9,2624.4,2.3827]
[1723832651134,3.90955,2625.0,2624.4,2.3827]
[1723832651287,0.1,2625.0,2624.4,2.3827]
[1723832651493,3.81034,2624.5,2624.0,2.4727]
[1723832651823,3.81034,2624.5,2623.5,3.81166]
[1723832651824,3.81034,2624.5,2623.6,2.4727]
[1723832651825,3.81069,2624.2,2623.6,2.4727]
[1723832652023,3.81106,2624.0,2623.6,2.4727]
[1723832652386,3.81069,2624.2,2623.6,2.4727]
[1723832652592,3.81017,2624.6,2623.8,3.81117]
[1723832653054,3.81017,2624.6,2623.6,6.28418]
[1723832653326,3.81033,2624.5,2623.6,6.28416]
[1723832653527,3.81033,2624.5,2623.7,0.628416]
[1723832653827,3.81017,2624.6,2623.8,3.81126]
[1723832654002,3.81054,2624.3,2623.7,0.71317743]
[1723832654194,0.381054,2624.2,2623.9,0.08457151]
[1723832654388,0.381054,2624.2,2623.8,0.08466647]
[1723832654389,3.81069,2624.2,2623.8,0.08466647]
[1723832654584,3.81055,2624.3,2624.0,0.08447657]
[1723832655027,3.81055,2624.3,2623.7,0.628434]
[1723832655197,3.81055,2624.3,2624.1,0.08438163]
[1723832655408,3.81031,2624.5,2623.7,4.439834]
[1723832655635,3.81031,2624.5,2624.2,0.08428669]
[1723832655935,3.81031,2624.5,2624.3,0.08419177]
[1723832656309,0.1,2625.0,2624.4,2.4276]
[1723832656511,0.1,2625.0,2624.4,2.51169685]
[1723832656715,0.490945,2625.0,2624.4,2.51169685]
[1723832657034,7.61953,2624.9,2624.4,2.51169685]
[1723832657341,3.80982,2624.8,2624.4,2.51169685]
[1723832657508,3.81024,2624.5,2624.4,0.08409685]
[1723832657834,3.81024,2624.5,2624.0,2.4276]
[1723832658033,7.62048,2624.5,2624.4,0.08409685]
[1723832658234,3.81121,2623.9,2623.7,2.3606]
[1723832658435,3.81121,2623.9,2623.3,2.3606]
[1723832658436,7.62245,2623.9,2623.3,2.3606]
[1723832658636,3.81121,2623.9,2623.8,0.08466647]
[1723832658836,3.81098,2624.0,2623.3,2.3606]
[1723832659144,3.81098,2624.0,2623.3,6.45152651]
[1723832659301,3.81098,2624.0,2623.4,0.08504636]
[1723832659302,3.81113,2623.9,2623.4,0.08504636]
[1723832659508,0.762211,2623.9,2623.4,0.08504636]
[1723832659741,3.81105,2624.0,2623.4,0.08504636]
[1723832660243,2.4362,2624.4,2623.4,0.08504636]
[1723832660447,3.8106,2624.3,2623.4,0.08504636]
[1723832660665,3.8117,2623.5,2623.4,0.08504636]
[1723832660852,3.81164,2623.6,2623.4,0.08504636]
[1723832661025,3.81164,2623.6,2622.9,2.49]
[1723832661026,3.81164,2623.6,2622.9,6.30248]
[1723832661225,3.81164,2623.6,2623.5,0.08495138]
[1723832661226,7.62331,2623.6,2623.5,0.08495138]
[1723832661429,3.81173,2623.5,2622.9,2.49]
[1723832661622,3.81153,2623.7,2622.9,6.98057708]
[1723832662008,3.81122,2623.9,2623.0,4.28991076]
[1723832662125,3.81129,2623.8,2623.0,4.98794847]
[1723832662328,4.192419,2623.8,2623.0,4.28989076]
[1723832662528,3.81142,2623.7,2623.0,4.28989076]
[1723832662724,3.81142,2623.7,2623.0,8.10223076]
[1723832662977,3.81142,2623.7,2623.0,3.81232]
[1723832663273,3.81124,2623.9,2623.1,3.81223]
[1723832663438,3.8113,2623.8,2623.1,4.442462]
[1723832663942,4.192156,2624.0,2623.2,7.62416]
[1723832663943,8.003256,2624.0,2623.2,7.62416]
[1723832664273,3.81113,2623.9,2623.2,8.0683462]
[1723832664484,3.81113,2623.9,2623.2,4.2562962]
[1723832664668,7.62263,2623.8,2623.1,0.630232]
[1723832664858,3.81143,2623.7,2623.0,3.81234]
[1723832665191,3.81128,2623.8,2623.1,3.81222]
[1723832665492,4.192096,2624.0,2623.0,3.81234]
[1723832665493,4.192096,2624.0,2623.2,4.574546]
[1723832665661,3.81119,2623.9,2623.2,3.81209]
[1723832665864,7.6227,2623.8,2623.0,7.62462]
[1723832666065,3.81142,2623.7,2623.0,3.81228]
[1723832666560,3.81134,2623.8,2623.0,4.823772]
[1723832666755,3.81134,2623.8,2623.1,3.8122]
[1723832667057,3.81134,2623.8,2623.0,4.823772]
[1723832667261,3.81178,2623.5,2622.9,2.49]
[1723832667561,3.0,2624.3,2622.9,2.49]
[1723832667562,3.8112,2623.9,2622.9,2.96757076]
[1723832667892,3.81157,2623.6,2622.9,2.49]
[1723832668185,3.81142,2623.7,2622.9,2.49]
[1723832668389,3.81219,2623.2,2623.0,0.0857725]
[1723832668690,3.81228,2623.1,2623.0,0.0857725]
[1723832668889,3.81219,2623.2,2623.0,0.0857725]
[1723832669188,3.81216,2623.2,2623.1,0.08567749]
[1723832669394,3.81216,2623.2,2622.5,6.08033]
[1723832669395,3.81216,2623.2,2622.6,0.22673]
[1723832669550,3.811,2624.0,2622.6,0.22673]
[1723832669551,3.81164,2623.6,2623.1,0.08567749]
[1723832669751,3.81136,2623.8,2623.1,2.2673]
[1723832669947,3.81136,2623.8,2623.2,0.08562928]
[1723832670565,3.81141,2623.7,2623.2,0.08562928]
[1723832670985,7.62319,2623.6,2623.2,0.08562928]
[1723832671167,8.385539,2623.6,2623.2,0.08562928]
[1723832671362,3.81134,2623.8,2623.2,0.08562928]
[1723832671681,3.81134,2623.8,2623.2,3.89773928]
[1723832672190,3.81107,2624.0,2623.2,3.89768928]
[1723832672492,3.81105,2624.0,2623.3,4.42837893]
[1723832672791,3.81105,2624.0,2623.4,0.08540653]
[1723832673172,7.62216,2624.0,2623.4,0.08540653]
[1723832673370,3.81119,2623.9,2623.4,0.08540653]
[1723832673551,3.81105,2624.0,2623.4,0.7668586]
[1723832674357,7.62212,2624.0,2623.4,0.7668586]
[1723832674711,3.81113,2623.9,2623.4,0.08540653]
[1723832674857,3.81084,2624.1,2623.4,0.08540653]
[1723832675056,3.81084,2624.1,2623.1,2.2673]
[1723832675057,3.81126,2623.8,2623.1,2.2673]
[1723832675357,3.81126,2623.8,2623.1,6.07957]
[1723832675557,7.62265,2623.8,2623.2,3.81212]
[1723832675768,3.81126,2623.8,2623.2,4.88688752]
[1723832675982,7.62264,2623.8,2623.2,1.07476752]
[1723832676184,3.81144,2623.7,2623.2,1.07476752]
[1723832677092,3.81146,2623.7,2623.2,1.07476752]
[1723832678204,7.62261,2623.8,2623.2,1.07476752]
[1723832678712,3.81162,2623.6,2623.2,1.07476752]
[1723832678872,3.81162,2623.6,2623.2,0.08559652]
[1723832679261,3.81126,2623.8,2623.2,0.08559652]
[1723832679262,7.62266,2623.8,2623.2,0.08559652]
[1723832679577,3.81126,2623.8,2623.2,0.08559652]
[1723832679795,3.81178,2623.5,2623.2,0.08559652]
[1723832679995,3.81184,2623.4,2623.2,0.08559652]
[1723832680895,3.81152,2623.7,2623.2,0.08559652]
[1723832681098,7.62398,2623.3,2623.2,0.08559652]
[1723832681593,3.81219,2623.2,2622.7,2.293]
[1723832681757,3.81243,2623.0,2622.7,2.293]
[1723832682593,3.81265,2622.9,2622.7,2.293]
[1723832682802,3.81243,2623.0,2622.7,2.293]
[1723832683122,7.62493,2623.0,2622.7,2.293]
[1723832683254,3.81243,2623.0,2622.7,2.293]
[1723832683455,3.81243,2623.0,2622.8,0.08592667]
[1723832683853,3.81243,2623.0,2622.7,2.293]
[1723832684066,3.81243,2623.0,2622.9,0.08583164]
[1723832684551,3.81243,2623.0,2622.7,2.293]
[1723832684751,3.81243,2623.0,2622.9,0.08583164]
[1723832684993,3.81243,2623.0,2622.7,2.293]
[1723832685178,3.81243,2623.0,2622.9,0.08583164]
[1723832685500,3.81258,2622.9,2622.4,2.4298]
[1723832685682,3.81258,2622.9,2622.4,2.71244745]
[1723832685882,3.81228,2623.1,2622.4,2.4298]
[1723832685883,3.81286,2622.7,2622.4,2.4298]
[1723832686392,3.81272,2622.8,2622.4,2.4298]
[1723832687376,3.81266,2622.9,2622.4,2.67278]
[1723832688285,7.62532,2622.9,2622.4,2.4298]
[1723832688624,3.81266,2622.9,2622.3,3.81341]
[1723832688821,3.81298,2622.7,2621.8,2.3947]
[1723832689128,3.81354,2622.3,2621.8,2.3947]
[1723832689980,3.81295,2622.7,2621.9,3.81391]
[1723832690320,6.19699,2623.2,2622.1,6.25973]
[1723832690321,7.62564,2622.8,2622.1,6.25973]
[1723832690561,3.81293,2622.7,2622.2,1.00735]
[1723832690988,3.81337,2622.4,2622.1,2.4461]
[1723832691186,3.81346,2622.3,2622.1,2.4461]
[1723832691435,3.81337,2622.4,2621.3,8.52086]
[1723832691436,3.81377,2622.1,2621.4,6.27236]
[1723832691584,3.81377,2622.1,2621.5,3.81452]
[1723832691788,7.62713,2622.3,2621.5,3.81452]
[1723832692003,3.81375,2622.1,2621.5,3.81452]
[1723832692222,3.81375,2622.1,2621.4,2.4577]
[1723832692401,3.81403,2621.9,2621.4,2.4577]
[1723832692589,3.81429,2621.8,2621.4,2.4577]
[1723832692783,3.81383,2622.1,2621.4,2.4577]
[1723832692987,3.81346,2622.3,2621.5,7.70530285]
[1723832693184,3.81373,2622.1,2621.5,4.06027]
[1723832693484,3.81374,2622.1,2621.5,4.06027]
[1723832693801,3.81374,2622.1,2621.6,0.651797]
[1723832694413,7.6271,2622.3,2621.6,4.466247]
[1723832694634,7.62708,2622.3,2621.7,2.4575]
[1723832694826,3.81361,2622.2,2621.7,2.4575]
[1723832694989,3.81375,2622.1,2621.7,2.4575]
[1723832695400,3.81381,2622.1,2621.7,2.4575]
[1723832696729,3.81359,2622.2,2621.7,2.4575]
[1723832697222,3.81374,2622.1,2621.7,2.4575]
[1723832697386,3.81349,2622.3,2621.7,2.4575]
[1723832698448,3.81349,2622.3,2621.8,0.087141]
[1723832698796,3.81325,2622.5,2621.8,4.4499691]
[1723832699043,3.81338,2622.4,2621.9,0.0870459]
[1723832699600,3.81345,2622.3,2621.9,0.0870459]
[1723832699837,3.81345,2622.3,2621.7,6.27181]
[1723832700035,3.81345,2622.3,2622.0,0.08706631]
[1723832700234,3.0,2622.9,2621.8,1.008625]
[1723832700456,3.81294,2622.7,2622.0,3.8138]
[1723832700635,3.81236,2623.1,2622.6,2.4575]
[1723832700839,3.81264,2622.9,2622.6,2.4575]
[1723832701016,3.81264,2622.9,2622.7,0.08640087]
[1723832701500,3.81238,2623.1,2622.7,0.08640087]
[1723832701700,7.62477,2623.1,2622.7,0.08640087]
[1723832701905,3.81238,2623.1,2622.7,0.08640087]
[1723832702140,3.81208,2623.3,2622.7,0.08640087]
[1723832702302,3.81179,2623.5,2622.7,0.72209296]
[1723832702498,3.81148,2623.7,2623.1,3.81226]
[1723832702705,3.81119,2623.9,2623.2,3.88832604]
[1723832702947,3.81138,2623.8,2623.3,2.489]
[1723832703151,3.81138,2623.8,2623.3,2.57483077]
[1723832703317,3.81143,2623.7,2623.3,2.57483077]
[1723832703656,7.62292,2623.7,2623.3,2.57483077]
[1723832703801,7.62368,2623.4,2623.3,0.08583077]
[1723832704001,3.81199,2623.3,2623.0,2.489]
[1723832704223,3.81184,2623.4,2623.3,0.08583077]
[1723832704430,3.81164,2623.6,2623.0,2.489]
[1723832704646,3.81131,2623.8,2623.3,0.08583077]
[1723832704860,7.62265,2623.8,2623.1,3.81227]
[1723832705015,3.81142,2623.7,2623.4,0.08400827]
[1723832705242,6.81073,2624.2,2623.0,6.55019]
[1723832705243,3.81076,2624.2,2623.6,2.3923]
[1723832705637,3.81121,2623.9,2623.7,0.08372334]
[1723832705877,0.76223,2623.8,2623.7,0.08372334]
[1723832706086,3.81113,2623.9,2623.7,0.08372334]
[1723832706292,3.81109,2624.0,2623.7,0.08372334]
[1723832706293,3.81105,2624.0,2623.7,0.08372334]
[1723832706493,7.62214,2624.0,2623.7,0.08372334]
[1723832706648,6.19722,2624.7,2623.7,0.08372334]
[1723832706649,7.62157,2624.2,2623.7,0.08372334]
[1723832706854,3.81077,2624.2,2623.7,0.08372334]
[1723832707355,0.619722,2624.6,2623.7,0.08372334]
[1723832707356,3.81106,2624.0,2623.7,0.08372334]
[1723832708899,3.81126,2623.8,2623.7,0.08372334]
[1723832709055,7.62252,2623.8,2623.7,0.08372334]
[1723832709276,7.62252,2623.8,2622.8,3.81263]
[1723832709277,3.81172,2623.5,2622.9,6.28874]
[1723832709460,3.81145,2623.7,2622.9,6.28874]
[1723832709461,3.81145,2623.7,2623.0,4.822557]
[1723832709664,3.81145,2623.7,2623.0,8.71903928]
[1723832709909,3.81145,2623.7,2623.0,4.90669928]
[1723832710703,3.81109,2624.0,2623.3,2.4572]
[1723832710860,3.81046,2624.4,2623.3,2.4572]
[1723832710861,3.8112,2623.9,2623.3,2.4572]
[1723832711061,3.8112,2623.9,2623.4,0.08385227]
[1723832711062,0.38112,2623.8,2623.4,0.08385227]
[1723832711290,3.8112,2623.9,2623.4,0.08385227]
[1723832711886,3.81137,2623.8,2623.4,0.08385227]
[1723832712305,7.62326,2623.6,2623.3,2.4572]
[1723832712611,7.62275,2623.8,2623.4,0.08361197]
[1723832712827,3.81143,2623.7,2623.4,0.08361197]
[1723832713821,3.81135,2623.8,2623.4,0.08361197]
[1723832713822,3.81155,2623.6,2623.4,0.08361197]
[1723832714013,4.192855,2623.5,2623.4,0.08361197]
[1723832714215,4.192855,2623.5,2622.9,2.4949]
[1723832714216,3.81232,2623.1,2622.9,2.4949]
[1723832715004,3.81116,2623.9,2622.9,2.4949]
[1723832715207,3.81214,2623.2,2622.9,2.74439]
[1723832715409,3.81214,2623.2,2622.9,2.4949]
[1723832715583,7.62435,2623.2,2622.9,2.4949]
[1723832715789,3.81214,2623.2,2622.9,2.4949]
[1723832715982,7.62389,2623.4,2622.9,2.4949]
[1723832716186,3.81192,2623.4,2622.9,2.4949]
[1723832716506,3.81217,2623.2,2622.9,2.4949]
[1723832717069,3.81193,2623.4,2622.9,2.4949]
[1723832717359,3.81165,2623.6,2622.9,6.30739]
[1723832717491,3.81165,2623.6,2622.9,7.39563351]
[1723832718240,3.81106,2624.0,2623.0,2.2756]
[1723832718372,3.81106,2624.0,2622.9,1.012005]
[1723832718373,3.81084,2624.1,2623.5,2.2756]
[1723832718714,3.81016,2624.6,2623.5,2.2756]
[1723832718715,3.81119,2623.9,2623.5,2.2756]
[1723832718924,3.81194,2623.4,2622.8,2.2756]
[1723832719133,3.81208,2623.3,2622.8,2.2756]
[1723832719434,4.707,2624.1,2623.0,3.81241]
[1723832719435,3.81159,2623.6,2623.0,3.81241]
[1723832719628,3.81146,2623.7,2622.8,6.0882]
[1723832719629,3.81173,2623.5,2622.8,6.0882]
[1723832719848,3.81213,2623.3,2622.8,2.2756]
[1723832719979,3.81231,2623.1,2622.8,2.2756]
[1723832720184,7.62423,2623.3,2622.8,2.2756]
[1723832720380,3.81177,2623.5,2622.8,2.884459]
[1723832720573,3.81177,2623.5,2622.8,6.697049]
[1723832721000,4.52275,2624.0,2622.9,3.81246]
[1723832721001,3.81147,2623.7,2622.9,3.81246]
[1723832721293,3.8117,2623.5,2622.9,0.6697049]
[1723832721479,3.8117,2623.5,2622.9,3.81249]
[1723832721839,3.8117,2623.5,2623.0,2.4894]
[1723832722327,1.222975,2623.9,2623.1,3.81224]
[1723832722328,5.034185,2623.9,2623.1,3.81224]
[1723832722485,3.81112,2623.9,2623.4,2.326]
[1723832722686,7.6215,2624.2,2623.4,6.13773]
[1723832722887,3.81127,2623.8,2623.4,2.326]
[1723832723199,4.94022,2624.4,2623.4,6.13782]
[1723832723200,3.81083,2624.1,2623.4,6.13782]
[1723832723508,3.81062,2624.3,2623.7,2.326]
[1723832723714,3.81012,2624.6,2623.9,3.81111]
[1723832723969,3.81046,2624.4,2623.9,2.326]
[1723832725620,3.81047,2624.4,2623.9,2.326]
[1723832725790,3.81063,2624.3,2623.5,2.4485]
[1723832725987,3.81075,2624.2,2623.5,6.26009]
[1723832726242,3.81003,2624.7,2623.5,2.4485]
[1723832726243,3.81048,2624.4,2623.5,2.4485]
[1723832726527,3.81141,2623.7,2622.9,2.4316]
[1723832726754,3.81195,2623.4,2622.9,2.4316]
[1723832727328,3.812,2623.3,2622.9,2.4316]
[1723832727931,3.81188,2623.4,2622.9,2.4316]
[1723832728406,3.81171,2623.5,2622.9,2.4316]
[1723832728568,7.6235,2623.5,2623.0,0.08123842]
[1723832728735,0.76235,2623.5,2623.0,0.08123842]
[1723832729062,3.81161,2623.6,2622.9,2.4316]
[1723832729063,3.81235,2623.1,2622.9,2.4316]
[1723832729417,3.81235,2623.1,2623.0,0.08123842]
[1723832730453,3.81194,2623.4,2623.0,0.08123842]
[1723832731146,4.24610307,2623.4,2623.0,0.08123842]
[1723832731537,3.81216,2623.2,2623.0,0.08123842]
[1723832731748,0.43416307,2623.4,2623.0,0.08123842]
[1723832731749,11.43684,2623.1,2623.0,0.08123842]
[1723832732057,3.81326,2622.5,2622.0,2.3316]
[1723832732260,3.81334,2622.4,2622.0,2.3316]
[1723832732458,3.81325,2622.5,2622.0,2.3316]
[1723832732688,7.62652,2622.5,2622.0,2.3316]
[1723832732838,3.81325,2622.5,2622.0,2.946176]
[1723832733035,3.81295,2622.7,2622.1,3.81369]
[1723832733352,3.81287,2622.7,2622.0,9.95913]
[1723832734074,3.81287,2622.7,2622.0,6.14535]
[1723832734244,3.81287,2622.7,2622.1,0.614535]
[1723832734646,3.81276,2622.8,2622.1,4.428215]
[1723832734977,3.81244,2623.0,2622.4,2.3316]
[1723832735481,3.81178,2623.5,2622.5,2.3316]
[1723832735637,3.81178,2623.5,2622.9,2.3316]
[1723832735847,3.8115,2623.7,2623.0,0.614424]
[1723832735848,3.8119,2623.4,2623.0,0.614424]
[1723832736144,3.8119,2623.4,2622.9,2.3316]
[1723832736336,3.81164,2623.6,2622.9,6.14412]
[1723832736644,7.623,2623.7,2623.0,0.23316]
[1723832736848,3.81157,2623.6,2623.0,0.23316]
[1723832737672,3.81147,2623.7,2623.0,0.23316]
[1723832737844,3.81179,2623.5,2622.9,6.14409]
[1723832738066,0.38115,2623.7,2622.9,6.14415]
[1723832738067,3.8117,2623.6,2622.9,6.14415]
[1723832738454,13.117308,2624.3,2622.9,6.14415]
[1723832738455,3.81134,2623.8,2622.9,6.14415]
[1723832738638,3.81134,2623.8,2622.9,6.22038753]
[1723832738833,3.81165,2623.6,2622.9,6.14415]
[1723832739046,3.81163,2623.6,2622.9,2.3316]
[1723832739280,3.8118,2623.5,2622.9,2.3316]
[1723832742166,3.81163,2623.6,2622.9,6.14414]
[1723832742783,7.62328,2623.6,2622.9,6.14414]
[1723832742988,3.81163,2623.6,2623.0,0.614414]
[1723832743987,3.81158,2623.6,2623.1,0.08133711]
[1723832744969,3.81106,2624.0,2623.2,3.81211]
[1723832745177,3.90955,2625.0,2623.7,3.81133]
[1723832745178,3.81049,2624.4,2623.7,3.81133]
[1723832745395,3.81049,2624.4,2623.8,2.4582]
[1723832745547,3.81049,2624.4,2623.8,2.53887222]
[1723832746084,3.81049,2624.4,2623.8,6.35013222]
[1723832746284,3.81026,2624.5,2623.8,6.8014994]
[1723832746500,7.62038,2624.6,2623.8,10.6126594]
[1723832746788,3.81026,2624.5,2623.8,10.6126594]
[1723832746982,3.81026,2624.5,2623.9,0.68396911]
[1723832747198,3.81013,2624.6,2624.0,0.08011515]
[1723832747397,7.62035,2624.6,2624.0,0.08011515]